[Event "*** Titled Tuesday Blitz"]
[Site "Chess.com"]
[Date "2020.04.14"]
[Round "8"]
[White "Gahan-MG"]
[Black "hedgehog280"]
[Result "0-1"]
[WhiteElo "2538"]
[BlackElo "2671"]
[TimeControl "180+1"]
[EndTime "11:30:04 PDT"]
[Termination "hedgehog280 won by resignation"]

1. e4 {[%clk 0:03:00.9]} 1... c5 {[%clk 0:02:58.6]} 2. c3 {[%clk 0:03:00.6]}
2... g6 {[%clk 0:02:59.5]} 3. d4 {[%clk 0:03:00.4]} 3... d5 {[%clk 0:02:59.3]}
4. exd5 {[%clk 0:02:56.3]} 4... Qxd5 {[%clk 0:02:58.6]} 5. dxc5 {[%clk
0:02:55.9]} 5... Qxc5 {[%clk 0:02:56.2]} 6. Be3 {[%clk 0:02:55.9]} 6... Qc7
{[%clk 0:02:55.4]} 7. Na3 {[%clk 0:02:55.4]} 7... Bg7 {[%clk 0:02:55.7]} 8. Nb5
{[%clk 0:02:53.1]} 8... Qc6 {[%clk 0:02:52.4]} 9. Nf3 {[%clk 0:02:51.2]} 9... a6
{[%clk 0:02:48.7]} 10. Na7 {[%clk 0:02:45]} 10... Qc7 {[%clk 0:02:43.5]} 11.
Nxc8 {[%clk 0:02:44.3]} 11... Qxc8 {[%clk 0:02:44.1]} 12. Qa4+ {[%clk 0:02:42]}
12... Nc6 {[%clk 0:02:40.6]} 13. Be2 {[%clk 0:02:40.2]} 13... Nf6 {[%clk
0:02:40.4]} 14. O-O {[%clk 0:02:39.9]} 14... O-O {[%clk 0:02:39.7]} 15. Rfd1
{[%clk 0:02:39.8]} 15... Qc7 {[%clk 0:02:34.7]} 16. h3 {[%clk 0:02:38.1]} 16...
e6 {[%clk 0:02:33.6]} 17. Qh4 {[%clk 0:02:37.8]} 17... Ne7 {[%clk 0:02:31.4]}
18. Bd3 {[%clk 0:02:33.5]} 18... Nf5 {[%clk 0:02:22]} 19. Bxf5 {[%clk
0:02:23.5]} 19... exf5 {[%clk 0:02:22.9]} 20. Bh6 {[%clk 0:02:13.9]} 20... Ne4
{[%clk 0:02:19.3]} 21. Bxg7 {[%clk 0:02:01.8]} 21... Kxg7 {[%clk 0:02:19.4]} 22.
Re1 {[%clk 0:01:57.4]} 22... h6 {[%clk 0:02:11.5]} 23. Nd4 {[%clk 0:01:52.4]}
23... Rfe8 {[%clk 0:02:05.7]} 24. f3 {[%clk 0:01:46.9]} 24... Nc5 {[%clk
0:01:51.1]} 25. Rad1 {[%clk 0:01:40]} 25... Rad8 {[%clk 0:01:49.1]} 26. Qf2
{[%clk 0:01:31.9]} 26... Nd7 {[%clk 0:01:37.3]} 27. Rxe8 {[%clk 0:01:18.2]}
27... Rxe8 {[%clk 0:01:38.2]} 28. Re1 {[%clk 0:01:18.6]} 28... Rxe1+ {[%clk
0:01:33.2]} 29. Qxe1 {[%clk 0:01:19.5]} 29... Qe5 {[%clk 0:01:33.5]} 30. Kf2
{[%clk 0:01:13.8]} 30... f4 {[%clk 0:01:29.6]} 31. Qxe5+ {[%clk 0:01:08]} 31...
Nxe5 {[%clk 0:01:29.3]} 32. Ke2 {[%clk 0:01:07.3]} 32... Kf6 {[%clk 0:01:28.3]}
33. Nb3 {[%clk 0:01:04.1]} 33... b6 {[%clk 0:01:24.7]} 34. Nd4 {[%clk
0:01:00.1]} 34... Kg5 {[%clk 0:01:22]} 35. b3 {[%clk 0:00:57.7]} 35... Kh4
{[%clk 0:01:17.4]} 36. c4 {[%clk 0:00:56.5]} 36... h5 {[%clk 0:01:13.1]} 37. a4
{[%clk 0:00:50.7]} 37... Kg3 {[%clk 0:01:07.9]} 38. Kf1 {[%clk 0:00:50]} 38...
Nd3 {[%clk 0:01:08.3]} 39. Ne2+ {[%clk 0:00:47.1]} 39... Kh2 {[%clk 0:01:06.4]}
40. Nc3 {[%clk 0:00:47.2]} 40... g5 {[%clk 0:01:02.7]} 41. Nd5 {[%clk 0:00:47]}
41... Nc5 {[%clk 0:00:59.2]} 42. Nxb6 {[%clk 0:00:43.2]} 42... Nxb3 {[%clk
0:00:59.3]} 43. Nd7 {[%clk 0:00:41.6]} 43... Nd2+ {[%clk 0:00:56.5]} 44. Kf2
{[%clk 0:00:41.6]} 44... Nxc4 {[%clk 0:00:57.4]} 45. Nf6 {[%clk 0:00:40.1]}
45... a5 {[%clk 0:00:55.8]} 46. Ne4 {[%clk 0:00:32.5]} 46... Nb2 {[%clk
0:00:52.5]} 47. Nc3 {[%clk 0:00:22.9]} 47... f5 {[%clk 0:00:50.4]} 48. Kf1
{[%clk 0:00:22.2]} 48... g4 {[%clk 0:00:46.6]} 49. hxg4 {[%clk 0:00:22.2]} 49...
fxg4 {[%clk 0:00:46.8]} 50. fxg4 {[%clk 0:00:21.6]} 50... hxg4 {[%clk
0:00:47.3]} 51. Ne2 {[%clk 0:00:20.4]} 51... f3 {[%clk 0:00:45.2]} 52. gxf3
{[%clk 0:00:20.7]} 52... gxf3 {[%clk 0:00:46.1]} 53. Nc3 {[%clk 0:00:20.9]}
53... Kg3 {[%clk 0:00:44.7]} 54. Ne4+ {[%clk 0:00:19]} 54... Kf4 {[%clk
0:00:43.5]} 55. Nc5 {[%clk 0:00:19.4]} 55... Ke3 {[%clk 0:00:42.7]} 56. Nb7
{[%clk 0:00:19.7]} 56... Nc4 {[%clk 0:00:42.5]} 57. Nc5 {[%clk 0:00:19.8]} 57...
Nd2+ {[%clk 0:00:42]} 58. Ke1 {[%clk 0:00:20.3]} 58... f2+ {[%clk 0:00:42.9]}
59. Kd1 {[%clk 0:00:21.1]} 59... f1=Q+ {[%clk 0:00:43.4]} 60. Kc2 {[%clk
0:00:22]} 60... Qc4+ {[%clk 0:00:43.6]} 61. Kb2 {[%clk 0:00:22.9]} 61... Qxc5
{[%clk 0:00:43.3]} 0-1

[Event "*** Titled Tuesday Blitz"]
[Site "Chess.com"]
[Date "2020.04.14"]
[Round "8"]
[White "Vincent_Vega95"]
[Black "Casper_Schoppen"]
[Result "1-0"]
[WhiteElo "2794"]
[BlackElo "2980"]
[TimeControl "180+1"]
[EndTime "11:30:05 PDT"]
[Termination "Vincent_Vega95 won on time"]

1. Nf3 {[%clk 0:02:58.2]} 1... d5 {[%clk 0:02:58.9]} 2. d4 {[%clk 0:02:58.1]}
2... Nf6 {[%clk 0:02:58.9]} 3. c4 {[%clk 0:02:58.4]} 3... e6 {[%clk 0:02:58.1]}
4. Nc3 {[%clk 0:02:58.4]} 4... Bb4 {[%clk 0:02:58.3]} 5. e3 {[%clk 0:02:56.3]}
5... O-O {[%clk 0:02:57.1]} 6. a3 {[%clk 0:02:47.2]} 6... Bxc3+ {[%clk
0:02:50.5]} 7. bxc3 {[%clk 0:02:48.1]} 7... c5 {[%clk 0:02:49.9]} 8. cxd5 {[%clk
0:02:44.9]} 8... exd5 {[%clk 0:02:47.8]} 9. Bd3 {[%clk 0:02:44.6]} 9... b6
{[%clk 0:02:44.6]} 10. O-O {[%clk 0:02:42.8]} 10... Ba6 {[%clk 0:02:43.9]} 11.
Bxa6 {[%clk 0:02:42.2]} 11... Nxa6 {[%clk 0:02:44.8]} 12. Qd3 {[%clk 0:02:36]}
12... Nc7 {[%clk 0:02:36.3]} 13. Bb2 {[%clk 0:02:16.3]} 13... Ne6 {[%clk
0:02:29]} 14. Rad1 {[%clk 0:02:11.1]} 14... Rc8 {[%clk 0:02:24.3]} 15. Nd2
{[%clk 0:02:00.9]} 15... Re8 {[%clk 0:02:20.5]} 16. f3 {[%clk 0:02:00]} 16... h6
{[%clk 0:02:06.7]} 17. Rfe1 {[%clk 0:01:59.8]} 17... Qc7 {[%clk 0:01:45.2]} 18.
Rc1 {[%clk 0:01:59]} 18... Qb7 {[%clk 0:01:30.4]} 19. Nf1 {[%clk 0:01:57.9]}
19... Rc7 {[%clk 0:01:22.2]} 20. Ng3 {[%clk 0:01:53.1]} 20... cxd4 {[%clk
0:01:21.2]} 21. Nf5 {[%clk 0:01:53.6]} 21... Nc5 {[%clk 0:00:56.2]} 22. Qd1
{[%clk 0:01:32.7]} 22... dxe3 {[%clk 0:00:39.6]} 23. Nd6 {[%clk 0:01:30.5]}
23... Qc6 {[%clk 0:00:40]} 24. Nxe8 {[%clk 0:01:30.8]} 24... Qxe8 {[%clk
0:00:40.9]} 25. c4 {[%clk 0:01:29.6]} 25... Rd7 {[%clk 0:00:27.6]} 26. Bxf6
{[%clk 0:01:21.5]} 26... gxf6 {[%clk 0:00:24.4]} 27. cxd5 {[%clk 0:00:30.6]}
27... f5 {[%clk 0:00:24.6]} 28. Rc4 {[%clk 0:00:23.1]} 28... Qe5 {[%clk
0:00:22.7]} 29. Qd4 {[%clk 0:00:22.9]} 29... Re7 {[%clk 0:00:18.5]} 30. d6
{[%clk 0:00:19.3]} 30... Qxd4 {[%clk 0:00:05.3]} 31. Rxd4 {[%clk 0:00:19.4]}
31... Rd7 {[%clk 0:00:05.4]} 32. Rxe3 {[%clk 0:00:19.5]} 32... Ne6 {[%clk
0:00:05.4]} 33. Rd1 {[%clk 0:00:18.8]} 33... Kg7 {[%clk 0:00:05.7]} 34. Kf2
{[%clk 0:00:18.7]} 34... Kf6 {[%clk 0:00:06.2]} 35. g3 {[%clk 0:00:19.1]} 35...
h5 {[%clk 0:00:03]} 36. f4 {[%clk 0:00:19.5]} 36... h4 {[%clk 0:00:02.6]} 37.
Re5 {[%clk 0:00:17.9]} 37... hxg3+ {[%clk 0:00:03.5]} 38. hxg3 {[%clk
0:00:18.3]} 38... Nc5 {[%clk 0:00:04.1]} 39. Rdd5 {[%clk 0:00:18.4]} 39... Ne4+
{[%clk 0:00:03.5]} 40. Kg2 {[%clk 0:00:17.5]} 40... Nxd6 {[%clk 0:00:04.4]} 41.
Rxf5+ {[%clk 0:00:17.4]} 41... Kg6 {[%clk 0:00:02]} 42. Rg5+ {[%clk 0:00:17.1]}
42... Kf6 {[%clk 0:00:02.6]} 43. Rgf5+ {[%clk 0:00:15.8]} 43... Kg6 {[%clk
0:00:03]} 44. Rfe5 {[%clk 0:00:16.1]} 44... Kf6 {[%clk 0:00:03.1]} 45. Re2
{[%clk 0:00:16.3]} 1-0

[Event "*** Titled Tuesday Blitz"]
[Site "Chess.com"]
[Date "2020.04.14"]
[Round "8"]
[White "frankshar"]
[Black "chidori_boruto"]
[Result "1/2-1/2"]
[WhiteElo "2251"]
[BlackElo "2618"]
[TimeControl "180+1"]
[EndTime "11:30:05 PDT"]
[Termination "Game drawn by repetition"]

1. d4 {[%clk 0:03:00.9]} 1... d5 {[%clk 0:02:59.1]} 2. c4 {[%clk 0:03:00.5]}
2... c6 {[%clk 0:02:59.2]} 3. Nf3 {[%clk 0:02:57.7]} 3... Nf6 {[%clk 0:02:58.5]}
4. e3 {[%clk 0:02:57.6]} 4... Bf5 {[%clk 0:02:58.1]} 5. Nc3 {[%clk 0:02:57.6]}
5... e6 {[%clk 0:02:57.5]} 6. Nh4 {[%clk 0:02:57.7]} 6... Bg6 {[%clk 0:02:57.2]}
7. Nxg6 {[%clk 0:02:56.8]} 7... hxg6 {[%clk 0:02:58.1]} 8. Qb3 {[%clk
0:02:56.6]} 8... Qc7 {[%clk 0:02:56.5]} 9. g3 {[%clk 0:02:53.1]} 9... Nbd7
{[%clk 0:02:56.2]} 10. Bg2 {[%clk 0:02:52.3]} 10... Be7 {[%clk 0:02:55.4]} 11.
Bd2 {[%clk 0:02:39.9]} 11... O-O {[%clk 0:02:52.8]} 12. O-O {[%clk 0:02:36.1]}
12... dxc4 {[%clk 0:02:51.6]} 13. Qxc4 {[%clk 0:02:35.3]} 13... a6 {[%clk
0:02:51.3]} 14. Rac1 {[%clk 0:02:27.4]} 14... Rac8 {[%clk 0:02:50.6]} 15. e4
{[%clk 0:02:20.9]} 15... b5 {[%clk 0:02:45.9]} 16. Qe2 {[%clk 0:02:18.9]} 16...
e5 {[%clk 0:02:40.4]} 17. d5 {[%clk 0:02:12.2]} 17... Qb6 {[%clk 0:02:29]} 18.
dxc6 {[%clk 0:01:49.2]} 18... Rxc6 {[%clk 0:02:28.3]} 19. Nd5 {[%clk 0:01:47.6]}
19... Nxd5 {[%clk 0:02:26.9]} 20. Rxc6 {[%clk 0:01:36.8]} 20... Qxc6 {[%clk
0:02:21.3]} 21. exd5 {[%clk 0:01:37.7]} 21... Qb6 {[%clk 0:02:11.4]} 22. Rc1
{[%clk 0:01:34.3]} 22... Bc5 {[%clk 0:02:08.3]} 23. b4 {[%clk 0:01:31.3]} 23...
Bd4 {[%clk 0:02:06.7]} 24. Rc6 {[%clk 0:01:30.4]} 24... Qa7 {[%clk 0:02:05.8]}
25. d6 {[%clk 0:01:23.5]} 25... Nf6 {[%clk 0:02:02.9]} 26. Bg5 {[%clk
0:01:09.4]} 26... Rd8 {[%clk 0:01:54.4]} 27. Bxf6 {[%clk 0:01:05.8]} 27... gxf6
{[%clk 0:01:52.4]} 28. Bd5 {[%clk 0:01:04.6]} 28... Kg7 {[%clk 0:01:39.6]} 29.
Rc7 {[%clk 0:01:02.2]} 29... Qb6 {[%clk 0:01:34.2]} 30. Rxf7+ {[%clk 0:01:01.3]}
30... Kh6 {[%clk 0:01:33.6]} 31. Qe4 {[%clk 0:00:50.9]} 31... Bxf2+ {[%clk
0:01:31.3]} 32. Kg2 {[%clk 0:00:48]} 32... Qd4 {[%clk 0:01:31]} 33. Qxd4 {[%clk
0:00:28.8]} 33... Bxd4 {[%clk 0:01:27.5]} 34. d7 {[%clk 0:00:29.7]} 34... f5
{[%clk 0:01:19.9]} 35. g4 {[%clk 0:00:26.8]} 35... fxg4 {[%clk 0:01:18.5]} 36.
Re7 {[%clk 0:00:25.8]} 36... Bc3 {[%clk 0:01:10.1]} 37. a3 {[%clk 0:00:23.2]}
37... a5 {[%clk 0:01:04.3]} 38. Bc6 {[%clk 0:00:14.7]} 38... axb4 {[%clk
0:00:47]} 39. Re8 {[%clk 0:00:14.8]} 39... Rxd7 {[%clk 0:00:47.1]} 40. Bxd7
{[%clk 0:00:13.5]} 40... bxa3 {[%clk 0:00:46]} 41. Be6 {[%clk 0:00:13.5]} 41...
b4 {[%clk 0:00:45]} 42. Bb3 {[%clk 0:00:13.3]} 42... Kg5 {[%clk 0:00:43.7]} 43.
Re6 {[%clk 0:00:09.7]} 43... Kf5 {[%clk 0:00:42.4]} 44. Re8 {[%clk 0:00:09.1]}
44... Kg5 {[%clk 0:00:30.1]} 45. Kg3 {[%clk 0:00:08.9]} 45... Be1+ {[%clk
0:00:30.1]} 46. Kg2 {[%clk 0:00:09.1]} 46... Bc3 {[%clk 0:00:30.5]} 1/2-1/2

[Event "*** Titled Tuesday Blitz"]
[Site "Chess.com"]
[Date "2020.04.14"]
[Round "8"]
[White "Spriteball"]
[Black "AVolodin"]
[Result "1-0"]
[WhiteElo "1953"]
[BlackElo "2682"]
[TimeControl "180+1"]
[EndTime "11:30:06 PDT"]
[Termination "Spriteball won on time"]

1. d4 {[%clk 0:03:00.9]} 1... Nf6 {[%clk 0:02:49.4]} 2. c4 {[%clk 0:02:59.9]}
2... c5 {[%clk 0:02:14.4]} 3. d5 {[%clk 0:02:55.3]} 3... b5 {[%clk 0:02:11.8]}
4. cxb5 {[%clk 0:02:55.3]} 4... a6 {[%clk 0:02:07.5]} 5. bxa6 {[%clk 0:02:55.5]}
5... Bxa6 {[%clk 0:02:07.1]} 6. Nc3 {[%clk 0:02:55.7]} 6... d6 {[%clk
0:02:07.6]} 7. e4 {[%clk 0:02:54.2]} 7... Bxf1 {[%clk 0:02:06.7]} 8. Kxf1 {[%clk
0:02:54]} 8... g6 {[%clk 0:02:07.6]} 9. g3 {[%clk 0:02:53.5]} 9... Bg7 {[%clk
0:02:08.2]} 10. Kg2 {[%clk 0:02:53.9]} 10... O-O {[%clk 0:02:08.9]} 11. Nf3
{[%clk 0:02:53.9]} 11... Nbd7 {[%clk 0:02:09.6]} 12. Qe2 {[%clk 0:02:50.4]}
12... Qa5 {[%clk 0:02:06.9]} 13. a4 {[%clk 0:02:48.2]} 13... Rfb8 {[%clk
0:02:04.2]} 14. Nd2 {[%clk 0:02:26.2]} 14... Ne8 {[%clk 0:01:54.6]} 15. Nc4
{[%clk 0:02:23.4]} 15... Qb4 {[%clk 0:01:37.8]} 16. Bd2 {[%clk 0:02:20.5]} 16...
Ne5 {[%clk 0:01:31.4]} 17. Nxe5 {[%clk 0:02:18]} 17... Bxe5 {[%clk 0:01:32.3]}
18. Rhb1 {[%clk 0:02:15.6]} 18... Qb3 {[%clk 0:00:55.2]} 19. Ra3 {[%clk
0:02:05.5]} 19... Qc2 {[%clk 0:00:55]} 20. Qd1 {[%clk 0:01:54.2]} 20... Qxd1
{[%clk 0:00:53.8]} 21. Nxd1 {[%clk 0:01:50.5]} 21... Nc7 {[%clk 0:00:53.4]} 22.
Bc3 {[%clk 0:01:43.8]} 22... f6 {[%clk 0:00:44.3]} 23. Bxe5 {[%clk 0:01:36.4]}
23... fxe5 {[%clk 0:00:43.9]} 24. Nc3 {[%clk 0:01:36.5]} 24... Rb4 {[%clk
0:00:43.6]} 25. Raa1 {[%clk 0:01:28.5]} 25... Kf7 {[%clk 0:00:17.3]} 26. f3
{[%clk 0:01:23.3]} 26... Ke8 {[%clk 0:00:16]} 27. Kf2 {[%clk 0:01:22.6]} 27...
Kd7 {[%clk 0:00:16.3]} 28. Ke3 {[%clk 0:01:22.6]} 28... e6 {[%clk 0:00:15.2]}
29. dxe6+ {[%clk 0:01:13.3]} 29... Nxe6 {[%clk 0:00:16.1]} 30. b3 {[%clk
0:01:04.7]} 30... Nd4 {[%clk 0:00:15.9]} 31. Nd5 {[%clk 0:01:01.2]} 31... Rb7
{[%clk 0:00:12.6]} 32. Ra2 {[%clk 0:00:54.6]} 32... Kc6 {[%clk 0:00:11.4]} 33.
b4 {[%clk 0:00:51.6]} 33... cxb4 {[%clk 0:00:09]} 34. Rxb4 {[%clk 0:00:43.5]}
34... Rba7 {[%clk 0:00:09.1]} 35. Rc4+ {[%clk 0:00:39.4]} 35... Kd7 {[%clk
0:00:04.8]} 36. Nb6+ {[%clk 0:00:39]} 36... Ke6 {[%clk 0:00:05]} 37. Nxa8 {[%clk
0:00:38.8]} 37... Rxa8 {[%clk 0:00:04.7]} 38. a5 {[%clk 0:00:38.4]} 38... Kd7
{[%clk 0:00:04.7]} 39. a6 {[%clk 0:00:35.3]} 39... Ne6 {[%clk 0:00:04]} 40. Rb4
{[%clk 0:00:23.1]} 40... Kc6 {[%clk 0:00:02.7]} 41. a7 {[%clk 0:00:20.4]} 41...
Kc7 {[%clk 0:00:02.8]} 42. Ra6 {[%clk 0:00:17.5]} 42... Nc5 {[%clk 0:00:02.3]}
43. Ra5 {[%clk 0:00:16.3]} 43... Nb7 {[%clk 0:00:01.3]} 44. Ra1 {[%clk
0:00:15.9]} 44... Nc5 {[%clk 0:00:01.3]} 45. f4 {[%clk 0:00:15.4]} 1-0

[Event "*** Titled Tuesday Blitz"]
[Site "Chess.com"]
[Date "2020.04.14"]
[Round "8"]
[White "AshotParvanyan"]
[Black "LastHeroJr"]
[Result "0-1"]
[WhiteElo "2576"]
[BlackElo "2557"]
[TimeControl "180+1"]
[EndTime "11:30:07 PDT"]
[Termination "LastHeroJr won on time"]

1. e4 {[%clk 0:03:00.9]} 1... e5 {[%clk 0:02:05]} 2. Nf3 {[%clk 0:02:59.7]} 2...
Nc6 {[%clk 0:02:05]} 3. Be2 {[%clk 0:02:56.1]} 3... Nf6 {[%clk 0:02:04.4]} 4.
Nc3 {[%clk 0:02:55.5]} 4... Bb4 {[%clk 0:02:03.7]} 5. Nd5 {[%clk 0:02:49.9]}
5... Ba5 {[%clk 0:01:53.5]} 6. c3 {[%clk 0:02:34.6]} 6... Nxe4 {[%clk
0:01:49.2]} 7. d3 {[%clk 0:02:09.7]} 7... Nd6 {[%clk 0:01:41.2]} 8. b4 {[%clk
0:01:56.1]} 8... Bb6 {[%clk 0:01:40.2]} 9. a4 {[%clk 0:01:55.4]} 9... a6 {[%clk
0:01:31.1]} 10. O-O {[%clk 0:01:19.6]} 10... Ba7 {[%clk 0:01:29.5]} 11. c4
{[%clk 0:00:56.1]} 11... O-O {[%clk 0:01:17.6]} 12. c5 {[%clk 0:00:53.7]} 12...
Nf5 {[%clk 0:01:17.6]} 13. Bb2 {[%clk 0:00:50.9]} 13... d6 {[%clk 0:01:15.9]}
14. b5 {[%clk 0:00:44.7]} 14... Nce7 {[%clk 0:01:04.3]} 15. Nxe7+ {[%clk
0:00:19.8]} 15... Qxe7 {[%clk 0:01:05.2]} 16. cxd6 {[%clk 0:00:17.2]} 16... cxd6
{[%clk 0:00:56.1]} 17. Qd2 {[%clk 0:00:17]} 17... Bd7 {[%clk 0:00:42.4]} 18.
bxa6 {[%clk 0:00:15.6]} 18... bxa6 {[%clk 0:00:43.3]} 19. Ba3 {[%clk 0:00:15.6]}
19... Bc6 {[%clk 0:00:36.1]} 20. Rab1 {[%clk 0:00:15.1]} 20... Bxa4 {[%clk
0:00:28.5]} 21. h3 {[%clk 0:00:11.7]} 21... Bc6 {[%clk 0:00:28.3]} 22. Ng5
{[%clk 0:00:11]} 22... Nd4 {[%clk 0:00:26.1]} 23. Ne4 {[%clk 0:00:08.3]} 23...
Rfd8 {[%clk 0:00:22.5]} 24. Bd1 {[%clk 0:00:06.2]} 24... f5 {[%clk 0:00:17.8]}
25. Nc3 {[%clk 0:00:05.6]} 25... Kh8 {[%clk 0:00:12.4]} 26. Qa2 {[%clk
0:00:05.8]} 26... Qg5 {[%clk 0:00:11.6]} 27. Nd5 {[%clk 0:00:05.2]} 27... f4
{[%clk 0:00:10.5]} 28. Bc1 {[%clk 0:00:04.2]} 28... Qg6 {[%clk 0:00:10]} 29. f3
{[%clk 0:00:03.8]} 29... Rd7 {[%clk 0:00:08.9]} 30. Kh1 {[%clk 0:00:03.9]} 30...
Nf5 {[%clk 0:00:09.1]} 31. Nb6 {[%clk 0:00:02.4]} 31... Bxb6 {[%clk 0:00:08.5]}
32. Rxb6 {[%clk 0:00:03.3]} 32... Ng3+ {[%clk 0:00:08.9]} 33. Kg1 {[%clk
0:00:03.8]} 33... Nxf1 {[%clk 0:00:09.2]} 34. Rxc6 {[%clk 0:00:03.6]} 34... Ne3
{[%clk 0:00:08.5]} 35. Bb3 {[%clk 0:00:03.3]} 35... Qxd3 {[%clk 0:00:08]} 36.
Qf2 {[%clk 0:00:03.2]} 36... Rb8 {[%clk 0:00:06.7]} 37. Be6 {[%clk 0:00:01.9]}
37... Rdb7 {[%clk 0:00:05.4]} 38. Kh2 {[%clk 0:00:01.5]} 38... Nf1+ {[%clk
0:00:04.4]} 39. Kg1 {[%clk 0:00:01.2]} 39... Ng3 {[%clk 0:00:05.3]} 40. Bd2
{[%clk 0:00:01.2]} 40... Qb1+ {[%clk 0:00:05]} 0-1

[Event "*** Titled Tuesday Blitz"]
[Site "Chess.com"]
[Date "2020.04.14"]
[Round "8"]
[White "PeterPantz"]
[Black "rynos0411"]
[Result "1-0"]
[WhiteElo "2265"]
[BlackElo "2390"]
[TimeControl "180+1"]
[EndTime "11:30:07 PDT"]
[Termination "PeterPantz won by resignation"]

1. d4 {[%clk 0:03:00.9]} 1... Nf6 {[%clk 0:02:56.6]} 2. c4 {[%clk 0:02:57.7]}
2... e6 {[%clk 0:02:56.9]} 3. Nc3 {[%clk 0:02:57.4]} 3... Bb4 {[%clk 0:02:57]}
4. Qc2 {[%clk 0:02:56.7]} 4... d5 {[%clk 0:02:53.8]} 5. cxd5 {[%clk 0:02:55.9]}
5... exd5 {[%clk 0:02:53.6]} 6. Bg5 {[%clk 0:02:56.3]} 6... O-O {[%clk
0:02:47.9]} 7. Nf3 {[%clk 0:02:55.2]} 7... h6 {[%clk 0:02:38]} 8. Bxf6 {[%clk
0:02:54]} 8... Qxf6 {[%clk 0:02:37.8]} 9. e3 {[%clk 0:02:53.7]} 9... c5 {[%clk
0:02:35.4]} 10. a3 {[%clk 0:02:51.9]} 10... Bxc3+ {[%clk 0:02:32.9]} 11. Qxc3
{[%clk 0:02:50.2]} 11... b6 {[%clk 0:01:40.9]} 12. Rc1 {[%clk 0:02:45.4]} 12...
c4 {[%clk 0:01:34.5]} 13. Be2 {[%clk 0:02:40.5]} 13... Bg4 {[%clk 0:01:33.7]}
14. h3 {[%clk 0:02:38.3]} 14... Bf5 {[%clk 0:01:28]} 15. O-O {[%clk 0:02:32.5]}
15... Nd7 {[%clk 0:01:28.1]} 16. a4 {[%clk 0:02:29.7]} 16... Qd6 {[%clk
0:01:23.5]} 17. b3 {[%clk 0:02:27]} 17... cxb3 {[%clk 0:01:13.2]} 18. Qxb3
{[%clk 0:02:21.3]} 18... Nf6 {[%clk 0:01:11.3]} 19. Ne5 {[%clk 0:02:19.1]} 19...
Ne4 {[%clk 0:01:09.7]} 20. Rc6 {[%clk 0:02:13]} 20... Qd8 {[%clk 0:01:09.5]} 21.
Qb2 {[%clk 0:01:32.1]} 21... Rc8 {[%clk 0:01:05.6]} 22. Rfc1 {[%clk 0:01:31.2]}
22... Qh4 {[%clk 0:01:02.3]} 23. Ba6 {[%clk 0:01:29.7]} 23... Rxc6 {[%clk
0:01:01]} 24. Nxc6 {[%clk 0:01:23.2]} 24... Bd7 {[%clk 0:00:41.1]} 25. a5 {[%clk
0:01:02.6]} 25... bxa5 {[%clk 0:00:22.1]} 26. Nxa5 {[%clk 0:00:54.6]} 26... g5
{[%clk 0:00:18.7]} 27. Rc7 {[%clk 0:00:53.5]} 27... Be6 {[%clk 0:00:15.6]} 28.
Bf1 {[%clk 0:00:25.6]} 28... h5 {[%clk 0:00:10.2]} 29. g3 {[%clk 0:00:23]} 29...
Nxg3 {[%clk 0:00:07.9]} 30. Rxa7 {[%clk 0:00:14.9]} 30... Nxf1 {[%clk
0:00:05.9]} 31. Kxf1 {[%clk 0:00:14.2]} 31... Qxh3+ {[%clk 0:00:06.1]} 32. Ke1
{[%clk 0:00:13]} 32... Bg4 {[%clk 0:00:06.2]} 33. Qb7 {[%clk 0:00:10.4]} 33...
Qh1+ {[%clk 0:00:05.1]} 34. Kd2 {[%clk 0:00:09.7]} 34... Qd1+ {[%clk 0:00:06]}
35. Kc3 {[%clk 0:00:09.7]} 35... Rc8+ {[%clk 0:00:06.2]} 36. Kb4 {[%clk
0:00:06.7]} 36... Qb1+ {[%clk 0:00:05.5]} 37. Nb3 {[%clk 0:00:06.5]} 37... Qe1+
{[%clk 0:00:06]} 38. Ka3 {[%clk 0:00:04.9]} 38... Rf8 {[%clk 0:00:05.7]} 39. Qe7
{[%clk 0:00:04.3]} 39... Qxf2 {[%clk 0:00:05.1]} 40. Qxg5+ {[%clk 0:00:03.5]}
40... Kh7 {[%clk 0:00:05.7]} 41. Ra6 {[%clk 0:00:02.7]} 41... f6 {[%clk
0:00:04]} 42. Ra7+ {[%clk 0:00:02.5]} 1-0

[Event "*** Titled Tuesday Blitz"]
[Site "Chess.com"]
[Date "2020.04.14"]
[Round "8"]
[White "Oleg_Papayan"]
[Black "Bagirova"]
[Result "1-0"]
[WhiteElo "2358"]
[BlackElo "2198"]
[TimeControl "180+1"]
[EndTime "11:30:08 PDT"]
[Termination "Oleg_Papayan won on time"]

1. e4 {[%clk 0:02:57]} 1... c5 {[%clk 0:02:59.1]} 2. d4 {[%clk 0:02:56.9]} 2...
cxd4 {[%clk 0:02:58.2]} 3. c3 {[%clk 0:02:57]} 3... d3 {[%clk 0:02:58.6]} 4.
Bxd3 {[%clk 0:02:56.8]} 4... g6 {[%clk 0:02:58.9]} 5. Nf3 {[%clk 0:02:57.1]}
5... Bg7 {[%clk 0:02:59.1]} 6. O-O {[%clk 0:02:57.6]} 6... d6 {[%clk 0:02:59.1]}
7. h3 {[%clk 0:02:57.1]} 7... e5 {[%clk 0:02:59.3]} 8. Bg5 {[%clk 0:02:56.7]}
8... Ne7 {[%clk 0:02:59.1]} 9. Nbd2 {[%clk 0:02:56.6]} 9... O-O {[%clk
0:02:59.2]} 10. Nc4 {[%clk 0:02:50]} 10... h6 {[%clk 0:02:51.6]} 11. Be3 {[%clk
0:02:49.9]} 11... g5 {[%clk 0:02:49.3]} 12. Bc2 {[%clk 0:02:38.4]} 12... d5
{[%clk 0:02:39.1]} 13. Ncxe5 {[%clk 0:02:30.3]} 13... Nbc6 {[%clk 0:02:29.3]}
14. Nxc6 {[%clk 0:02:21.5]} 14... bxc6 {[%clk 0:02:25.9]} 15. Bc5 {[%clk
0:02:15.1]} 15... Be6 {[%clk 0:02:12.7]} 16. exd5 {[%clk 0:02:07]} 16... cxd5
{[%clk 0:02:03.2]} 17. Qd3 {[%clk 0:01:46.1]} 17... Bf5 {[%clk 0:01:53.4]} 18.
Qe3 {[%clk 0:01:31.1]} 18... Re8 {[%clk 0:01:38.1]} 19. Bxf5 {[%clk 0:01:10]}
19... Nxf5 {[%clk 0:01:36.5]} 20. Qd3 {[%clk 0:01:10.5]} 20... Qd7 {[%clk
0:01:27.2]} 21. Rad1 {[%clk 0:01:10.7]} 21... Rad8 {[%clk 0:01:23.8]} 22. Rfe1
{[%clk 0:00:50.5]} 22... Rxe1+ {[%clk 0:00:45.7]} 23. Rxe1 {[%clk 0:00:51.4]}
23... Qc6 {[%clk 0:00:40.6]} 24. Bxa7 {[%clk 0:00:44.8]} 24... Nd6 {[%clk
0:00:35.8]} 25. Bd4 {[%clk 0:00:39.4]} 25... Ne4 {[%clk 0:00:32.7]} 26. Bxg7
{[%clk 0:00:37.4]} 26... Kxg7 {[%clk 0:00:29]} 27. Rxe4 {[%clk 0:00:37.7]} 27...
dxe4 {[%clk 0:00:27.7]} 28. Qxd8 {[%clk 0:00:38.6]} 28... exf3 {[%clk
0:00:27.9]} 29. Qd4+ {[%clk 0:00:33.6]} 29... f6 {[%clk 0:00:20.8]} 30. c4
{[%clk 0:00:14.8]} 30... fxg2 {[%clk 0:00:19]} 31. Qd5 {[%clk 0:00:15.1]} 31...
Qa6 {[%clk 0:00:15.1]} 32. a3 {[%clk 0:00:15.1]} 32... Qb6 {[%clk 0:00:12.4]}
33. b4 {[%clk 0:00:13.7]} 33... Qa6 {[%clk 0:00:12.3]} 34. Qd7+ {[%clk
0:00:11.6]} 34... Kg6 {[%clk 0:00:10.2]} 35. Qd3+ {[%clk 0:00:11.9]} 35... Kg7
{[%clk 0:00:06.8]} 36. Kxg2 {[%clk 0:00:12.8]} 36... Qc6+ {[%clk 0:00:05.9]} 37.
Qd5 {[%clk 0:00:12.8]} 37... Qa4 {[%clk 0:00:05.6]} 38. Qb7+ {[%clk 0:00:11.5]}
38... Kg6 {[%clk 0:00:04.8]} 39. Qf3 {[%clk 0:00:12.1]} 39... Kg7 {[%clk
0:00:05]} 40. c5 {[%clk 0:00:10.9]} 40... Qb5 {[%clk 0:00:01.3]} 41. c6 {[%clk
0:00:11.1]} 1-0